[Event "Titled Tuesday Blitz April 25 Early 2023"]
[White "Sovetbekova, Nurai"]
[Black "Sailer, Mike"]
[WhiteFideId "13801910"]
[BlackFideId "2012901"]
[WhiteElo "1857"]
[BlackElo "2109"]
[Result "1-0"]
[Round "08"]
[TimeControl "180+2"]
[Date "2023.04.25"]
[WhiteClock "0:00:11"]
[BlackClock "0:00:03"]

1. d4 {[%clk 0:03:00]}  d5 {[%clk 0:03:00]} 2. c4 {[%clk 0:03:01]}  Bf5 {[%clk 0:03:00]} 3. cxd5 {[%clk 0:02:59]}  Bxb1 {[%clk 0:02:59]} 4. Qa4+ {[%clk 0:02:54]}  Qd7 {[%clk 0:02:58]} 5. Qxd7+ {[%clk 0:02:53]}  Nxd7 {[%clk 0:02:59]} 6. Rxb1 {[%clk 0:02:53]}  Ngf6 {[%clk 0:02:58]} 7. Nf3 {[%clk 0:02:50]}  Nb6 {[%clk 0:02:57]} 8. e3 {[%clk 0:02:44]}  Nbxd5 {[%clk 0:02:55]} 9. Bd2 {[%clk 0:02:42]}  Ne4 {[%clk 0:02:52]} 10. Bc4 {[%clk 0:02:35]}  e6 {[%clk 0:02:44]} 11. Rc1 {[%clk 0:02:25]}  Nxd2 {[%clk 0:02:37]} 12. Kxd2 {[%clk 0:02:10]}  Bb4+ {[%clk 0:02:37]} 13. Ke2 {[%clk 0:02:08]}  c6 {[%clk 0:02:31]} 14. a3 {[%clk 0:02:06]}  Ba5 {[%clk 0:02:26]} 15. b4 {[%clk 0:02:03]}  Bc7 {[%clk 0:02:25]} 16. b5 {[%clk 0:02:01]}  cxb5 {[%clk 0:01:46]} 17. Bxb5+ {[%clk 0:02:02]}  Ke7 {[%clk 0:01:46]} 18. Bc4 {[%clk 0:01:07]}  Rac8 {[%clk 0:01:31]} 19. Bxd5 {[%clk 0:01:02]}  exd5 {[%clk 0:01:31]} 20. Rc5 {[%clk 0:00:56]}  Bd6 {[%clk 0:01:24]} 21. Rxd5 {[%clk 0:00:45]}  Bxa3 {[%clk 0:01:24]} 22. Rb1 {[%clk 0:00:35]}  b6 {[%clk 0:00:59]} 23. Re5+ {[%clk 0:00:33]}  Kd6 {[%clk 0:00:50]} 24. Nd2 {[%clk 0:00:18]}  f6 {[%clk 0:00:42]} 25. Reb5 {[%clk 0:00:18]}  Rc1 {[%clk 0:00:31]} 26. Rxc1 {[%clk 0:00:15]}  Bxc1 {[%clk 0:00:31]} 27. Ne4+ {[%clk 0:00:14]}  Kc6 {[%clk 0:00:29]} 28. Rb1 {[%clk 0:00:14]}  Ba3 {[%clk 0:00:30]} 29. Ra1 {[%clk 0:00:15]}  Bb2 {[%clk 0:00:08]} 30. Rxa7 {[%clk 0:00:13]}  Rg8 {[%clk 0:00:07]} 31. Kd3 {[%clk 0:00:12]}  f5 {[%clk 0:00:07]} 32. Nd2 {[%clk 0:00:11]}  h6 {[%clk 0:00:04]} 33. Nc4 {[%clk 0:00:11]}  Bc1 {[%clk 0:00:03]} 34. Kc2 {[%clk 0:00:11]}  b5 {[%clk 0:00:03]} 35. Ne5+ {[%clk 0:00:11]} 1-0


[Site "https://www.chess.com"]

[Event "Titled Tuesday Blitz April 25 Early 2023"]
[White "GregLeBarbare"]
[Black "Todorovic, Bojan"]
[BlackFideId "917087"]
[WhiteElo "2169"]
[BlackElo "2266"]
[Result "0-1"]
[Round "08"]
[TimeControl "180+2"]
[Date "2023.04.25"]
[WhiteClock "0:00:26"]
[BlackClock "0:00:26"]

1. d4 {[%clk 0:02:56]}  g6 {[%clk 0:02:58]} 2. Nf3 {[%clk 0:02:47]}  Bg7 {[%clk 0:02:57]} 3. c3 {[%clk 0:02:46]}  d6 {[%clk 0:02:55]} 4. e4 {[%clk 0:02:43]}  e5 {[%clk 0:02:53]} 5. dxe5 {[%clk 0:02:42]}  dxe5 {[%clk 0:02:52]} 6. Qxd8+ {[%clk 0:02:42]}  Kxd8 {[%clk 0:02:52]} 7. Bc4 {[%clk 0:02:33]}  f6 {[%clk 0:02:41]} 8. Ke2 {[%clk 0:02:29]}  c6 {[%clk 0:02:39]} 9. Rd1+ {[%clk 0:02:28]}  Kc7 {[%clk 0:02:37]} 10. Nbd2 {[%clk 0:02:26]}  Nd7 {[%clk 0:02:35]} 11. Nf1 {[%clk 0:02:26]}  b5 {[%clk 0:02:31]} 12. Bb3 {[%clk 0:02:26]}  Nc5 {[%clk 0:02:30]} 13. Bc2 {[%clk 0:02:25]}  Be6 {[%clk 0:02:28]} 14. Be3 {[%clk 0:02:24]}  Nd7 {[%clk 0:02:12]} 15. Bb3 {[%clk 0:02:05]}  Bg4 {[%clk 0:01:56]} 16. Nd2 {[%clk 0:02:03]}  f5 {[%clk 0:01:40]} 17. h3 {[%clk 0:01:54]}  Bxf3+ {[%clk 0:01:39]} 18. Nxf3 {[%clk 0:01:54]}  f4 {[%clk 0:01:39]} 19. Bd2 {[%clk 0:01:51]}  h6 {[%clk 0:01:25]} 20. c4 {[%clk 0:01:51]}  bxc4 {[%clk 0:01:15]} 21. Bxc4 {[%clk 0:01:49]}  Ngf6 {[%clk 0:01:15]} 22. Ba5+ {[%clk 0:01:43]}  Kb7 {[%clk 0:01:11]} 23. Nd2 {[%clk 0:01:26]}  Nb6 {[%clk 0:00:59]} 24. f3 {[%clk 0:01:22]}  Bf8 {[%clk 0:00:53]} 25. Bc3 {[%clk 0:01:19]}  Bd6 {[%clk 0:00:51]} 26. Bf7 {[%clk 0:01:16]}  Rhf8 {[%clk 0:00:46]} 27. Bxg6 {[%clk 0:01:15]}  Rg8 {[%clk 0:00:46]} 28. Bf5 {[%clk 0:01:11]}  Rxg2+ {[%clk 0:00:46]} 29. Kf1 {[%clk 0:01:11]}  Rag8 {[%clk 0:00:42]} 30. Nb3 {[%clk 0:00:58]}  Bc7 {[%clk 0:00:34]} 31. Nc5+ {[%clk 0:00:52]}  Ka8 {[%clk 0:00:34]} 32. Ne6 {[%clk 0:00:50]}  Bb8 {[%clk 0:00:28]} 33. Be1 {[%clk 0:00:32]}  Nc4 {[%clk 0:00:27]} 34. Bf2 {[%clk 0:00:27]}  Ne3+ {[%clk 0:00:26]} 35. Bxe3 {[%clk 0:00:27]}  fxe3 {[%clk 0:00:27]} 36. Re1 {[%clk 0:00:26]}  Rf2# {[%clk 0:00:26]} 0-1


[Site "https://www.chess.com"]

[Event "Titled Tuesday Blitz April 25 Early 2023"]
[White "Hartikainen, Jarmo"]
[Black "Pavlidis, Anastasios"]
[WhiteFideId "503134"]
[BlackFideId "4208404"]
[WhiteElo "2153"]
[BlackElo "2210"]
[Result "0-1"]
[Round "08"]
[TimeControl "180+2"]
[Date "2023.04.25"]
[WhiteClock "0:00:01"]
[BlackClock "0:01:58"]

1. e4 {[%clk 0:03:00]}  g6 {[%clk 0:02:56]} 2. d4 {[%clk 0:03:00]}  Bg7 {[%clk 0:02:57]} 3. Nc3 {[%clk 0:03:00]}  d5 {[%clk 0:02:58]} 4. Nxd5 {[%clk 0:02:54]}  c6 {[%clk 0:02:58]} 5. Ne3 {[%clk 0:02:50]}  Qxd4 {[%clk 0:02:58]} 6. Qxd4 {[%clk 0:02:48]}  Bxd4 {[%clk 0:02:59]} 7. c3 {[%clk 0:02:48]}  Bg7 {[%clk 0:02:59]} 8. Bc4 {[%clk 0:02:46]}  Nd7 {[%clk 0:02:59]} 9. Ne2 {[%clk 0:02:24]}  Ngf6 {[%clk 0:02:59]} 10. f3 {[%clk 0:02:18]}  Ne5 {[%clk 0:02:58]} 11. O-O {[%clk 0:02:08]}  Nxc4 {[%clk 0:02:57]} 12. Nxc4 {[%clk 0:02:08]}  Be6 {[%clk 0:02:55]} 13. Na5 {[%clk 0:01:56]}  Bc8 {[%clk 0:02:54]} 14. Be3 {[%clk 0:01:48]}  O-O {[%clk 0:02:54]} 15. Rfd1 {[%clk 0:01:47]}  Ne8 {[%clk 0:02:47]} 16. Bf4 {[%clk 0:01:23]}  f5 {[%clk 0:02:42]} 17. Rd8 {[%clk 0:00:49]}  fxe4 {[%clk 0:02:42]} 18. fxe4 {[%clk 0:00:49]}  Nd6 {[%clk 0:02:42]} 19. Rxf8+ {[%clk 0:00:46]}  Bxf8 {[%clk 0:02:39]} 20. Ng3 {[%clk 0:00:40]}  Nf7 {[%clk 0:02:29]} 21. Rd1 {[%clk 0:00:37]}  e5 {[%clk 0:02:29]} 22. Be3 {[%clk 0:00:37]}  Bd6 {[%clk 0:02:29]} 23. c4 {[%clk 0:00:30]}  Bc7 {[%clk 0:02:29]} 24. Bd2 {[%clk 0:00:20]}  Bg4 {[%clk 0:02:29]} 25. Re1 {[%clk 0:00:17]}  Rd8 {[%clk 0:02:29]} 26. Bc3 {[%clk 0:00:16]}  Be6 {[%clk 0:02:25]} 27. b3 {[%clk 0:00:16]}  Bc8 {[%clk 0:02:24]} 28. Kf2 {[%clk 0:00:12]}  Rd3 {[%clk 0:02:24]} 29. Bb4 {[%clk 0:00:11]}  c5 {[%clk 0:02:25]} 30. Ke2 {[%clk 0:00:10]}  Rd8 {[%clk 0:02:23]} 31. Bc3 {[%clk 0:00:09]}  Bg4+ {[%clk 0:02:23]} 32. Ke3 {[%clk 0:00:08]}  Rd6 {[%clk 0:02:14]} 33. h3 {[%clk 0:00:08]}  Bc8 {[%clk 0:02:06]} 34. Re2 {[%clk 0:00:08]}  Ra6 {[%clk 0:02:06]} 35. Rd2 {[%clk 0:00:02]}  Bxa5 {[%clk 0:02:05]} 36. Bxa5 {[%clk 0:00:02]}  Rxa5 {[%clk 0:02:05]} 37. a4 {[%clk 0:00:02]}  Ra6 {[%clk 0:02:05]} 38. Rd5 {[%clk 0:00:02]}  Rc6 {[%clk 0:02:02]} 39. Ne2 {[%clk 0:00:02]}  b6 {[%clk 0:02:01]} 40. Nc3 {[%clk 0:00:02]}  Rd6 {[%clk 0:02:01]} 41. Nb5 {[%clk 0:00:02]}  Rxd5 {[%clk 0:02:00]} 42. cxd5 {[%clk 0:00:02]}  a6 {[%clk 0:02:00]} 43. Nc7 {[%clk 0:00:02]}  Kf8 {[%clk 0:01:59]} 44. Kd3 {[%clk 0:00:01]}  Ke7 {[%clk 0:01:58]} 45. b4 {[%clk 0:00:01]}  Kd6 {[%clk 0:01:58]} 0-1


[Site "https://www.chess.com"]

[Event "Titled Tuesday Blitz April 25 Early 2023"]
[White "Tymrakiewicz, Rafal"]
[Black "Kohler, Aran"]
[WhiteFideId "1108832"]
[BlackFideId "1002856"]
[WhiteElo "2151"]
[BlackElo "2279"]
[Result "0-1"]
[Round "08"]
[TimeControl "180+2"]
[Date "2023.04.25"]
[WhiteClock "0:00:07"]
[BlackClock "0:00:25"]

1. e4 {[%clk 0:02:51]}  c6 {[%clk 0:02:59]} 2. d4 {[%clk 0:02:46]}  d5 {[%clk 0:02:59]} 3. e5 {[%clk 0:02:47]}  c5 {[%clk 0:02:59]} 4. f4 {[%clk 0:02:38]}  cxd4 {[%clk 0:02:50]} 5. Nf3 {[%clk 0:02:38]}  Nc6 {[%clk 0:02:40]} 6. a3 {[%clk 0:02:38]}  Bg4 {[%clk 0:02:38]} 7. h3 {[%clk 0:02:37]}  Bxf3 {[%clk 0:02:38]} 8. Qxf3 {[%clk 0:02:38]}  e6 {[%clk 0:02:37]} 9. Bd3 {[%clk 0:02:34]}  a5 {[%clk 0:02:27]} 10. O-O {[%clk 0:02:31]}  Bc5 {[%clk 0:02:27]} 11. Nd2 {[%clk 0:02:29]}  Nge7 {[%clk 0:02:24]} 12. g4 {[%clk 0:02:29]}  h5 {[%clk 0:02:13]} 13. Qg3 {[%clk 0:02:15]}  hxg4 {[%clk 0:02:11]} 14. hxg4 {[%clk 0:02:15]}  Ng6 {[%clk 0:01:59]} 15. Nf3 {[%clk 0:02:15]}  Qe7 {[%clk 0:01:42]} 16. Bd2 {[%clk 0:02:13]}  O-O-O {[%clk 0:01:38]} 17. Rfe1 {[%clk 0:01:44]}  Nh4 {[%clk 0:01:31]} 18. Ng5 {[%clk 0:01:38]}  Rde8 {[%clk 0:01:14]} 19. Kf2 {[%clk 0:01:35]}  Nd8 {[%clk 0:01:06]} 20. b4 {[%clk 0:01:11]}  Ba7 {[%clk 0:01:02]} 21. Rh1 {[%clk 0:01:03]}  f6 {[%clk 0:01:02]} 22. Rxh4 {[%clk 0:00:49]}  fxg5 {[%clk 0:00:57]} 23. Rxh8 {[%clk 0:00:49]}  Rxh8 {[%clk 0:00:57]} 24. f5 {[%clk 0:00:49]}  a4 {[%clk 0:00:44]} 25. Kg2 {[%clk 0:00:28]}  Rh4 {[%clk 0:00:39]} 26. Rf1 {[%clk 0:00:22]}  Bb8 {[%clk 0:00:38]} 27. f6 {[%clk 0:00:15]}  gxf6 {[%clk 0:00:38]} 28. exf6 {[%clk 0:00:16]}  Qf7 {[%clk 0:00:31]} 29. Qxh4 {[%clk 0:00:14]}  gxh4 {[%clk 0:00:31]} 30. g5 {[%clk 0:00:13]}  Qh5 {[%clk 0:00:30]} 31. Kh3 {[%clk 0:00:13]}  Nf7 {[%clk 0:00:27]} 32. g6 {[%clk 0:00:10]}  Ng5+ {[%clk 0:00:28]} 33. Bxg5 {[%clk 0:00:09]}  Qxg5 {[%clk 0:00:28]} 34. Rf3 {[%clk 0:00:07]}  Qg1 {[%clk 0:00:25]} 0-1


[Site "https://www.chess.com"]

[Event "Titled Tuesday Blitz April 25 Early 2023"]
[White "Bueno, Alfeu Junior Varela"]
[Black "Lach, Aleksandra"]
[WhiteFideId "2108879"]
[BlackFideId "1134299"]
[WhiteElo "2175"]
[BlackElo "2111"]
[Result "1-0"]
[Round "08"]
[TimeControl "180+2"]
[Date "2023.04.25"]
[WhiteClock "0:00:04"]
[BlackClock "0:00:06"]

1. e4 {[%clk 0:03:00]}  c5 {[%clk 0:02:59]} 2. Nc3 {[%clk 0:03:00]}  a6 {[%clk 0:02:57]} 3. g3 {[%clk 0:03:00]}  b5 {[%clk 0:02:56]} 4. Bg2 {[%clk 0:03:01]}  Bb7 {[%clk 0:02:56]} 5. d3 {[%clk 0:03:00]}  e6 {[%clk 0:02:51]} 6. f4 {[%clk 0:03:01]}  Nf6 {[%clk 0:02:45]} 7. Qe2 {[%clk 0:03:00]}  Qc7 {[%clk 0:01:46]} 8. e5 {[%clk 0:02:55]}  Nd5 {[%clk 0:01:46]} 9. Nxd5 {[%clk 0:02:55]}  Bxd5 {[%clk 0:01:45]} 10. Bxd5 {[%clk 0:02:51]}  exd5 {[%clk 0:01:46]} 11. Nf3 {[%clk 0:02:51]}  Nc6 {[%clk 0:01:47]} 12. O-O {[%clk 0:02:46]}  Be7 {[%clk 0:01:47]} 13. f5 {[%clk 0:02:40]}  O-O-O {[%clk 0:01:46]} 14. c3 {[%clk 0:02:28]}  f6 {[%clk 0:01:31]} 15. Bf4 {[%clk 0:02:24]}  Qa7 {[%clk 0:01:27]} 16. a4 {[%clk 0:02:17]}  b4 {[%clk 0:01:26]} 17. Kh1 {[%clk 0:02:14]}  Rhe8 {[%clk 0:01:23]} 18. Qc2 {[%clk 0:01:57]}  Kb7 {[%clk 0:01:11]} 19. Qb3 {[%clk 0:01:54]}  fxe5 {[%clk 0:00:47]} 20. Nxe5 {[%clk 0:01:51]}  Bf6 {[%clk 0:00:42]} 21. Nf7 {[%clk 0:01:43]}  Ka8 {[%clk 0:00:18]} 22. Nxd8 {[%clk 0:01:40]}  Rxd8 {[%clk 0:00:19]} 23. Qxd5 {[%clk 0:01:27]}  Qb7 {[%clk 0:00:19]} 24. Rab1 {[%clk 0:01:16]}  Na5 {[%clk 0:00:15]} 25. Qxb7+ {[%clk 0:01:14]}  Kxb7 {[%clk 0:00:16]} 26. Rfe1 {[%clk 0:01:04]}  Nc6 {[%clk 0:00:16]} 27. Bd6 {[%clk 0:01:01]}  Kb6 {[%clk 0:00:14]} 28. Re4 {[%clk 0:00:51]}  a5 {[%clk 0:00:14]} 29. Rc1 {[%clk 0:00:36]}  Nb8 {[%clk 0:00:04]} 30. cxb4 {[%clk 0:00:33]}  axb4 {[%clk 0:00:04]} 31. Bxc5+ {[%clk 0:00:32]}  Ka6 {[%clk 0:00:05]} 32. Rxb4 {[%clk 0:00:30]}  Nc6 {[%clk 0:00:05]} 33. Rb6+ {[%clk 0:00:29]}  Ka5 {[%clk 0:00:06]} 34. Ra1 {[%clk 0:00:25]}  d6 {[%clk 0:00:02]} 35. Rxc6 {[%clk 0:00:19]}  dxc5 {[%clk 0:00:03]} 36. Rxc5+ {[%clk 0:00:18]}  Ka6 {[%clk 0:00:03]} 37. Rd1 {[%clk 0:00:13]}  Bxb2 {[%clk 0:00:01]} 38. d4 {[%clk 0:00:08]}  Ba3 {[%clk 0:00:01]} 39. Rc4 {[%clk 0:00:07]}  Ka5 {[%clk 0:00:01]} 40. Kg2 {[%clk 0:00:08]}  Bb4 {[%clk 0:00:01]} 41. Rb1 {[%clk 0:00:07]}  Bd6 {[%clk 0:00:02]} 42. Rb5+ {[%clk 0:00:07]}  Ka6 {[%clk 0:00:02]} 43. Rc6+ {[%clk 0:00:07]}  Ka7 {[%clk 0:00:03]} 44. Rd5 {[%clk 0:00:07]}  Re8 {[%clk 0:00:02]} 45. Rcxd6 {[%clk 0:00:07]}  Re2+ {[%clk 0:00:03]} 46. Kh3 {[%clk 0:00:07]}  Ra2 {[%clk 0:00:04]} 47. Rd7+ {[%clk 0:00:07]}  Kb6 {[%clk 0:00:04]} 48. Rxg7 {[%clk 0:00:07]}  Kc6 {[%clk 0:00:04]} 49. Re5 {[%clk 0:00:06]}  Kd6 {[%clk 0:00:04]} 50. Rxh7 {[%clk 0:00:06]}  Rxa4 {[%clk 0:00:04]} 51. Rh6+ {[%clk 0:00:06]}  Kd7 {[%clk 0:00:04]} 52. Rb5 {[%clk 0:00:06]}  Rxd4 {[%clk 0:00:05]} 53. Rb7+ {[%clk 0:00:06]}  Kc8 {[%clk 0:00:05]} 54. Ra7 {[%clk 0:00:05]}  Kb8 {[%clk 0:00:06]} 55. Rg7 {[%clk 0:00:04]}  Kc8 {[%clk 0:00:06]} 56. Rh8+ {[%clk 0:00:04]} 1-0


[Site "https://www.chess.com"]

[Event "Titled Tuesday Blitz April 25 Early 2023"]
[White "Antonio, Jorge Carlos"]
[Black "Carrasco Miranda, Andres"]
[WhiteFideId "113190"]
[BlackFideId "3405990"]
[WhiteElo "2247"]
[BlackElo "2183"]
[Result "1/2-1/2"]
[Round "08"]
[TimeControl "180+2"]
[Date "2023.04.25"]
[WhiteClock "0:00:05"]
[BlackClock "0:00:06"]

1. d4 {[%clk 0:03:00]}  Nf6 {[%clk 0:02:47]} 2. Nf3 {[%clk 0:03:00]}  g6 {[%clk 0:02:47]} 3. c4 {[%clk 0:02:59]}  Bg7 {[%clk 0:02:47]} 4. Nc3 {[%clk 0:02:59]}  d5 {[%clk 0:02:47]} 5. Bg5 {[%clk 0:02:58]}  Ne4 {[%clk 0:02:47]} 6. Bh4 {[%clk 0:02:57]}  Nxc3 {[%clk 0:02:46]} 7. bxc3 {[%clk 0:02:57]}  dxc4 {[%clk 0:02:46]} 8. e3 {[%clk 0:02:58]}  b5 {[%clk 0:02:46]} 9. a4 {[%clk 0:02:57]}  c6 {[%clk 0:02:46]} 10. axb5 {[%clk 0:02:57]}  cxb5 {[%clk 0:02:47]} 11. Qb1 {[%clk 0:02:55]}  a6 {[%clk 0:02:46]} 12. Be2 {[%clk 0:02:40]}  O-O {[%clk 0:02:41]} 13. Qb4 {[%clk 0:02:38]}  Nc6 {[%clk 0:02:28]} 14. Qc5 {[%clk 0:02:37]}  Bb7 {[%clk 0:02:14]} 15. O-O {[%clk 0:02:36]}  Re8 {[%clk 0:02:13]} 16. Nd2 {[%clk 0:02:22]}  Rc8 {[%clk 0:02:07]} 17. Bg4 {[%clk 0:02:10]}  Rc7 {[%clk 0:01:54]} 18. Bg3 {[%clk 0:02:09]}  e5 {[%clk 0:01:55]} 19. Qb6 {[%clk 0:01:56]}  h5 {[%clk 0:01:46]} 20. Bf3 {[%clk 0:01:51]}  h4 {[%clk 0:01:46]} 21. Bxe5 {[%clk 0:01:45]}  Bxe5 {[%clk 0:01:42]} 22. Ne4 {[%clk 0:01:35]}  Bg7 {[%clk 0:01:22]} 23. Nc5 {[%clk 0:01:32]}  Bc8 {[%clk 0:01:12]} 24. Bxc6 {[%clk 0:01:28]}  Qd6 {[%clk 0:01:09]} 25. d5 {[%clk 0:01:26]}  Bxc3 {[%clk 0:01:09]} 26. Nxa6 {[%clk 0:01:16]}  Rxc6 {[%clk 0:00:50]} 27. dxc6 {[%clk 0:01:03]}  Bxa1 {[%clk 0:00:49]} 28. Rxa1 {[%clk 0:01:02]}  Re6 {[%clk 0:00:45]} 29. Qxb5 {[%clk 0:00:57]}  Qxc6 {[%clk 0:00:43]} 30. Qxc6 {[%clk 0:00:56]}  Rxc6 {[%clk 0:00:44]} 31. Nb4 {[%clk 0:00:55]}  Rc5 {[%clk 0:00:37]} 32. Kf1 {[%clk 0:00:50]}  h3 {[%clk 0:00:34]} 33. g3 {[%clk 0:00:48]}  Kg7 {[%clk 0:00:33]} 34. Ke1 {[%clk 0:00:48]}  c3 {[%clk 0:00:34]} 35. Rc1 {[%clk 0:00:40]}  Be6 {[%clk 0:00:28]} 36. Nd3 {[%clk 0:00:34]}  Rc8 {[%clk 0:00:25]} 37. Nf4 {[%clk 0:00:32]}  Bb3 {[%clk 0:00:22]} 38. Nxh3 {[%clk 0:00:30]}  Kf6 {[%clk 0:00:19]} 39. Nf4 {[%clk 0:00:30]}  Ke5 {[%clk 0:00:19]} 40. Ne2 {[%clk 0:00:27]}  c2 {[%clk 0:00:15]} 41. Nd4 {[%clk 0:00:25]}  Ba4 {[%clk 0:00:14]} 42. Kd2 {[%clk 0:00:25]}  Ke4 {[%clk 0:00:14]} 43. f3+ {[%clk 0:00:17]}  Kd5 {[%clk 0:00:13]} 44. Nxc2 {[%clk 0:00:17]}  Bxc2 {[%clk 0:00:14]} 45. Rxc2 {[%clk 0:00:17]}  Ra8 {[%clk 0:00:14]} 46. Rb2 {[%clk 0:00:16]}  Ke5 {[%clk 0:00:13]} 47. h4 {[%clk 0:00:16]}  Ra3 {[%clk 0:00:12]} 48. Rc2 {[%clk 0:00:15]}  Rb3 {[%clk 0:00:11]} 49. Rc3 {[%clk 0:00:15]}  Rb2+ {[%clk 0:00:11]} 50. Kd3 {[%clk 0:00:16]}  Rg2 {[%clk 0:00:12]} 51. g4 {[%clk 0:00:16]}  Rh2 {[%clk 0:00:12]} 52. Rc5+ {[%clk 0:00:15]}  Kd6 {[%clk 0:00:12]} 53. Ra5 {[%clk 0:00:12]}  Rxh4 {[%clk 0:00:12]} 54. Ke4 {[%clk 0:00:12]}  Rh1 {[%clk 0:00:11]} 55. Ra7 {[%clk 0:00:10]}  Ke6 {[%clk 0:00:11]} 56. f4 {[%clk 0:00:10]}  Rb1 {[%clk 0:00:09]} 57. Ra6+ {[%clk 0:00:08]}  Ke7 {[%clk 0:00:10]} 58. Ra4 {[%clk 0:00:07]}  Ke6 {[%clk 0:00:09]} 59. g5 {[%clk 0:00:07]}  Rb2 {[%clk 0:00:08]} 60. Ra6+ {[%clk 0:00:05]}  Ke7 {[%clk 0:00:08]} 61. Ke5 {[%clk 0:00:04]}  Rb5+ {[%clk 0:00:08]} 62. Kd4 {[%clk 0:00:03]}  Rb4+ {[%clk 0:00:06]} 63. Kd3 {[%clk 0:00:03]}  Rb3+ {[%clk 0:00:06]} 64. Ke4 {[%clk 0:00:03]}  Rb4+ {[%clk 0:00:07]} 65. Kf3 {[%clk 0:00:03]}  Rb3 {[%clk 0:00:07]} 66. Ra4 {[%clk 0:00:03]}  Rb1 {[%clk 0:00:05]} 67. Ke4 {[%clk 0:00:02]}  Rb2 {[%clk 0:00:04]} 68. Rd4 {[%clk 0:00:02]}  Rb1 {[%clk 0:00:04]} 69. Kf3 {[%clk 0:00:02]}  Rb3 {[%clk 0:00:04]} 70. Ke4 {[%clk 0:00:03]}  Rb2 {[%clk 0:00:04]} 71. Kf3 {[%clk 0:00:04]}  Rb1 {[%clk 0:00:05]} 72. Ke4 {[%clk 0:00:05]}  Rb2 {[%clk 0:00:05]} 73. Kf3 {[%clk 0:00:05]}  Rb1 {[%clk 0:00:06]} 74. Ke4 {[%clk 0:00:05]}  Rb2 {[%clk 0:00:06]} 1/2-1/2


[Site "https://www.chess.com"]

[Event "Titled Tuesday Blitz April 25 Early 2023"]
[White "Chakravarthi Reddy, M"]
[Black "Maluco_do_Natal_00"]
[WhiteFideId "25009532"]
[WhiteElo "2201"]
[BlackElo "2008"]
[Result "1-0"]
[Round "08"]
[TimeControl "180+2"]
[Date "2023.04.25"]
[WhiteClock "0:00:44"]
[BlackClock "0:00:01"]

1. e4 {[%clk 0:03:00]}  c5 {[%clk 0:02:57]} 2. Nf3 {[%clk 0:03:01]}  Nc6 {[%clk 0:02:55]} 3. Bb5 {[%clk 0:03:00]}  e6 {[%clk 0:02:55]} 4. O-O {[%clk 0:03:00]}  Nge7 {[%clk 0:02:55]} 5. Re1 {[%clk 0:02:59]}  e5 {[%clk 0:02:47]} 6. c3 {[%clk 0:02:54]}  d6 {[%clk 0:02:39]} 7. d4 {[%clk 0:02:53]}  Bd7 {[%clk 0:02:35]} 8. Bc4 {[%clk 0:02:45]}  h6 {[%clk 0:02:22]} 9. Qb3 {[%clk 0:02:38]}  Be6 {[%clk 0:02:12]} 10. Bxe6 {[%clk 0:02:23]}  fxe6 {[%clk 0:02:12]} 11. Qxe6 {[%clk 0:02:24]}  Qd7 {[%clk 0:02:09]} 12. Qb3 {[%clk 0:02:13]}  cxd4 {[%clk 0:02:07]} 13. cxd4 {[%clk 0:02:13]}  exd4 {[%clk 0:01:54]} 14. Nbd2 {[%clk 0:02:03]}  O-O-O {[%clk 0:01:50]} 15. Nc4 {[%clk 0:02:01]}  Ng6 {[%clk 0:01:35]} 16. Bd2 {[%clk 0:01:57]}  Be7 {[%clk 0:01:27]} 17. Rac1 {[%clk 0:01:56]}  Kb8 {[%clk 0:01:26]} 18. e5 {[%clk 0:01:47]}  dxe5 {[%clk 0:01:20]} 19. Ncxe5 {[%clk 0:01:46]}  Ngxe5 {[%clk 0:01:16]} 20. Nxe5 {[%clk 0:01:47]}  Nxe5 {[%clk 0:01:13]} 21. Rxe5 {[%clk 0:01:48]}  Bd6 {[%clk 0:00:38]} 22. Re4 {[%clk 0:01:44]}  Rhe8 {[%clk 0:00:26]} 23. Rxe8 {[%clk 0:01:35]}  Rxe8 {[%clk 0:00:23]} 24. g3 {[%clk 0:01:35]}  Qe6 {[%clk 0:00:14]} 25. Qa4 {[%clk 0:01:22]}  Rd8 {[%clk 0:00:08]} 26. Qxd4 {[%clk 0:01:18]}  Bc7 {[%clk 0:00:06]} 27. Qxg7 {[%clk 0:01:14]}  Rd7 {[%clk 0:00:04]} 28. Qf8+ {[%clk 0:01:04]}  Rd8 {[%clk 0:00:03]} 29. Qb4 {[%clk 0:01:04]}  Qxa2 {[%clk 0:00:02]} 30. Bxh6 {[%clk 0:00:48]}  Qe6 {[%clk 0:00:01]} 31. Be3 {[%clk 0:00:48]}  Qd7 {[%clk 0:00:01]} 32. h4 {[%clk 0:00:47]}  a6 {[%clk 0:00:01]} 33. Qc5 {[%clk 0:00:44]} 1-0


[Site "https://www.chess.com"]

[Event "Titled Tuesday Blitz April 25 Early 2023"]
[White "Sanchez, Robert"]
[Black "Jaivardhan Raj"]
[WhiteFideId "2034360"]
[BlackFideId "25744437"]
[WhiteElo "1938"]
[BlackElo "1772"]
[Result "0-1"]
[Round "08"]
[TimeControl "180+2"]
[Date "2023.04.25"]
[WhiteClock "0:01:05"]
[BlackClock "0:00:22"]

1. Nf3 {[%clk 0:03:00]}  Nc6 {[%clk 0:02:56]} 2. e3 {[%clk 0:03:00]}  Nf6 {[%clk 0:02:56]} 3. c4 {[%clk 0:02:59]}  g6 {[%clk 0:02:56]} 4. Nc3 {[%clk 0:03:00]}  Bg7 {[%clk 0:02:56]} 5. d4 {[%clk 0:03:00]}  d6 {[%clk 0:02:57]} 6. Be2 {[%clk 0:03:01]}  O-O {[%clk 0:02:57]} 7. O-O {[%clk 0:03:01]}  Bg4 {[%clk 0:02:57]} 8. h3 {[%clk 0:03:01]}  Bxf3 {[%clk 0:02:57]} 9. Bxf3 {[%clk 0:03:01]}  Rb8 {[%clk 0:02:57]} 10. Bxc6 {[%clk 0:02:58]}  bxc6 {[%clk 0:02:58]} 11. Qa4 {[%clk 0:02:58]}  Qd7 {[%clk 0:02:53]} 12. b3 {[%clk 0:02:55]}  Rb7 {[%clk 0:02:50]} 13. Bb2 {[%clk 0:02:54]}  Rfb8 {[%clk 0:02:48]} 14. Rad1 {[%clk 0:02:52]}  Kf8 {[%clk 0:02:16]} 15. e4 {[%clk 0:02:47]}  c5 {[%clk 0:02:03]} 16. e5 {[%clk 0:02:41]}  Qxa4 {[%clk 0:02:00]} 17. Nxa4 {[%clk 0:02:41]}  Nd7 {[%clk 0:02:00]} 18. dxc5 {[%clk 0:02:41]}  Nxc5 {[%clk 0:01:53]} 19. Nxc5 {[%clk 0:02:39]}  dxc5 {[%clk 0:01:53]} 20. Rd5 {[%clk 0:02:32]}  a5 {[%clk 0:01:44]} 21. Rfd1 {[%clk 0:02:29]}  Ke8 {[%clk 0:01:41]} 22. Rxc5 {[%clk 0:02:07]}  a4 {[%clk 0:01:39]} 23. Bd4 {[%clk 0:01:55]}  axb3 {[%clk 0:01:28]} 24. axb3 {[%clk 0:01:56]}  Rd8 {[%clk 0:01:28]} 25. Rd5 {[%clk 0:01:54]}  Rxd5 {[%clk 0:01:26]} 26. cxd5 {[%clk 0:01:54]}  Rxb3 {[%clk 0:01:26]} 27. f4 {[%clk 0:01:51]}  Bh6 {[%clk 0:01:18]} 28. e6 {[%clk 0:01:33]}  fxe6 {[%clk 0:01:08]} 29. dxe6 {[%clk 0:01:33]}  Bxf4 {[%clk 0:01:08]} 30. Ra1 {[%clk 0:01:32]}  Rb8 {[%clk 0:00:58]} 31. Bg7 {[%clk 0:01:30]}  Be3+ {[%clk 0:00:53]} 32. Kh1 {[%clk 0:01:27]}  Bf4 {[%clk 0:00:43]} 33. Rf1 {[%clk 0:01:21]}  g5 {[%clk 0:00:36]} 34. g3 {[%clk 0:01:20]}  Rb3 {[%clk 0:00:25]} 35. gxf4 {[%clk 0:01:18]}  Rxh3+ {[%clk 0:00:25]} 36. Kg2 {[%clk 0:01:18]}  Rh5 {[%clk 0:00:22]} 37. Ra1 {[%clk 0:01:05]} 0-1


[Site "https://www.chess.com"]